[Event "XIV American Continental-ch 2019"]
[Site "Sao Paulo"]
[Date "2019.07.13"]
[Round "11.17"]
[White "Cubas, Jose Fernando"]
[Black "Gemy, Jose Daniel"]
[Result "1-0"]
[ECO "A00"]
[WhiteElo "2493"]
[BlackElo "2371"]
[Annotator "ChessBase"]
[PlyCount "91"]
[EventDate "2019.07.05"]
[EventType "swiss"]
[EventCountry "BRA"]
[SourceTitle "playchess.com"]
[Source "ChessBase"]
[SourceQuality "1"]
[TimeControl "40/5400+30:1800+30"]

1. Nc3 d5 2. d4 f5 3. e4 dxe4 4. Bc4 Nf6 {[%emt 0:30:59]} 5. f3 {[%emt 0:24:29]} Nc6 {[%emt 0:06:36]} 6. d5 {[%emt 0:04:44]} Na5 {[%emt 0:03:16]} 7. Qe2 {[%emt 0:04:41]} e5 {[%emt 0:08:15]} 8. dxe6 {[%emt 0:09:15]} Nxc4 {[%emt 0:09:31]} 9. Qxc4 {[%emt 0:00:02]} Qe7 {[%emt 0:00:08]} 10. Qb5+ {[%emt 0:05:34]} c6 {[%emt 0:00:25]} 11. Qxf5 {[%emt 0:00:02]} Bxe6 {[%emt 0:00:49]} 12. Qe5 {[%emt 0:00:02]} exf3 {[%emt 0:02:50]} 13. Nxf3 {[%emt 0:00:10]} Bf5 {[%emt 0:01:12]} 14. Qxe7+ {[%emt 0:12:08]} Bxe7 {[%emt 0:01:32]} 15. Nd4 {[%emt 0:00:01]} Bg6 {[%emt 0:01:03]} 16. Bg5 {[%emt 0:00:33]} Bb4 {[%emt 0:17:33]} 17. Bxf6 {[%emt 0:10:23]} gxf6 {[%emt 0:00:39]} 18. O-O-O {[%emt 0:00:13]} Bxc3 {[%emt 0:07:02]} 19. bxc3 {[%emt 0:00:09]} Kf7 {[%emt 0:00:09]} 20. Rdf1 {[%emt 0:07:38]} Rhe8 {[%emt 0:02:53]} 21. Rf2 {[%emt 0:00:46]} Rad8 {[%emt 0:04:13]} 22. Rhf1 {[%emt 0:00:24]} Rd6 {[%emt 0:00:10]} 23. g4 {[%emt 0:00:30]} Kg7 {[%emt 0:00:58]} 24. h4 {[%emt 0:01:39]} c5 25. Nb5 {[%emt 0:01:02]} Rb6 {[%emt 0:00:54]} 26. Nc7 {[%emt 0:02:21]} Re5 {[%emt 0:00:05]} 27. c4 {[%emt 0:05:10]} Bf7 {[%emt 0:00:05]} 28. Rf4 {[%emt 0:00:03]} h6 {[%emt 0:00:18]} 29. Rd1 {[%emt 0:00:19]} Re7 {[%emt 0:01:37]} 30. Nd5 {[%emt 0:00:21]} Bxd5 {[%emt 0:00:17]} 31. cxd5 {[%emt 0:00:42]} Rb4 {[%emt 0:00:15]} 32. Rxb4 {[%emt 0:03:09]} cxb4 {[%emt 0:00:01]} 33. Rd4 {[%emt 0:01:43]} a5 {[%emt 0:00:08]} 34. d6 {[%emt 0:00:41]} Rd7 {[%emt 0:00:06]} 35. Kd2 {[%emt 0:00:03]} Kf7 {[%emt 0:01:12]} 36. Ke3 {[%emt 0:00:06]} Ke6 {[%emt 0:00:34]} 37. Ke4 {[%emt 0:01:11]} b5 {[%emt 0:01:47]} 38. Kf4 {[%emt 0:00:07]} a4 {[%emt 0:00:26]} 39. Rd1 {[%emt 0:02:31]} a3 {[%emt 0:01:00]} 40. Re1+ {[%emt 0:06:08]} Kd5 {[%emt 0:00:22]} 41. Kf5 {[%emt 0:30:36]} Kd4 {[%emt 0:30:26]} 42. Ke6 {[%emt 0:00:37]} Rd8 {[%emt 0:00:11]} 43. Ke7 {[%emt 0:00:36]} Ra8 {[%emt 0:00:10]} 44. d7 {[%emt 0:00:04]} Kc3 {[%emt 0:00:04]} 45. Rb1 {[%emt 0:00:03]} Kxc2 {[%emt 0:01:25]} 46. Rb3 {[%emt 0:00:31]} 1-0

[Event "XIV American Continental-ch 2019"]
[Site "Sao Paulo"]
[Date "2019.07.13"]
[Round "11.18"]
[White "Mieles Palau, Daniel"]
[Black "Molina, Roberto Junio Brito"]
[Result "1-0"]
[ECO "A11"]
[WhiteElo "2359"]
[BlackElo "2464"]
[Annotator "ChessBase"]
[PlyCount "44"]
[EventDate "2019.07.05"]
[EventType "swiss"]
[EventCountry "BRA"]
[SourceTitle "playchess.com"]
[Source "ChessBase"]
[SourceQuality "1"]
[TimeControl "40/5400+30:1800+30"]

1. c4 {[%emt 0:00:00]} c6 {[%emt 0:13:44]} 2. Nf3 {[%emt 0:00:00]} d5 {[%emt 0:00:05]} 3. e3 {[%emt 0:00:09]} Nf6 {[%emt 0:00:04]} 4. Nc3 {[%emt 0:00:54]} a6 {[%emt 0:00:19]} 5. Qc2 {[%emt 0:03:32]} g6 {[%emt 0:01:48]} 6. d4 {[%emt 0:00:03]} Bf5 {[%emt 0:00:21]} 7. Bd3 {[%emt 0:01:02]} Bxd3 {[%emt 0:00:21]} 8. Qxd3 {[%emt 0:00:05]} Bg7 {[%emt 0:00:23]} 9. O-O {[%emt 0:04:41]} O-O {[%emt 0:00:49]} 10. b3 {[%emt 0:00:01]} Nbd7 {[%emt 0:00:51]} 11. Bb2 {[%emt 0:01:12]} Rc8 {[%emt 0:00:26]} 12. Rac1 {[%emt 0:02:34]} Re8 {[%emt 0:03:58]} 13. cxd5 {[%emt 0:04:07]} cxd5 {[%emt 0:00:06]} 14. Rc2 {[%emt 0:00:05]} Rc7 {[%emt 0:00:39]} 15. Rfc1 {[%emt 0:00:31]} Qb8 {[%emt 0:00:30]} 16. Ne5 {[%emt 0:13:43]} Rec8 {[%emt 0:12:54]} 17. Nxd7 {[%emt 0:08:24]} Rxd7 {[%emt 0:01:19]} 18. Na4 {[%emt 0:00:30]} Ne8 {[%emt 0:03:20]} 19. Nb6 {[%emt 0:06:58]} Rd6 {[%emt 0:00:30]} 20. Na4 {[%emt 0:01:32]} Rd7 {[%emt 0:01:28]} 21. Bc3 {[%emt 0:04:47]} Bf8 {[%emt 0:11:19]} 22. Ba5 {[%emt 0:04:09]} b5 {[%emt 0:03:43]} 1-0

[Event "XIV American Continental-ch 2019"]
[Site "Sao Paulo"]
[Date "2019.07.13"]
[Round "11.19"]
[White "Matsuura, Everaldo"]
[Black "Acosta, Pablo Alejandro"]
[Result "1-0"]
[ECO "A29"]
[WhiteElo "2459"]
[BlackElo "1992"]
[Annotator "ChessBase"]
[PlyCount "69"]
[EventDate "2019.07.05"]
[EventType "swiss"]
[EventCountry "BRA"]
[SourceTitle "playchess.com"]
[Source "ChessBase"]
[SourceQuality "1"]
[TimeControl "40/5400+30:1800+30"]

1. c4 {[%emt 0:07:38]} e5 {[%emt 0:12:23]} 2. Nc3 {[%emt 0:02:17]} Nf6 {[%emt 0:00:20]} 3. Nf3 {[%emt 0:05:15]} Nc6 {[%emt 0:01:09]} 4. g3 {[%emt 0:00:29]} Bb4 {[%emt 0:00:05]} 5. Bg2 {[%emt 0:00:12]} Bxc3 {[%emt 0:00:07]} 6. bxc3 {[%emt 0:00:11]} O-O {[%emt 0:00:48]} 7. O-O {[%emt 0:00:05]} Re8 {[%emt 0:00:57]} 8. d3 {[%emt 0:00:23]} d6 {[%emt 0:02:49]} 9. e4 {[%emt 0:01:40]} h6 {[%emt 0:00:10]} 10. Ne1 {[%emt 0:03:48]} Nh7 {[%emt 0:04:35]} 11. Nc2 {[%emt 0:04:47]} Be6 {[%emt 0:03:46]} 12. Rb1 {[%emt 0:02:23]} Rb8 {[%emt 0:00:05]} 13. Ne3 {[%emt 0:02:43]} Ne7 {[%emt 0:01:40]} 14. d4 {[%emt 0:04:38]} Qc8 {[%emt 0:02:13]} 15. Re1 {[%emt 0:07:56]} Bh3 {[%emt 0:00:12]} 16. Bh1 {[%emt 0:02:01]} Kh8 {[%emt 0:05:02]} 17. c5 {[%emt 0:03:41]} dxc5 {[%emt 0:01:54]} 18. dxe5 {[%emt 0:02:14]} Qe6 {[%emt 0:00:23]} 19. Nd5 {[%emt 0:10:42]} Red8 {[%emt 0:01:23]} 20. Qe2 {[%emt 0:02:16]} Ng6 {[%emt 0:09:03]} 21. f4 {[%emt 0:03:19]} Qd7 {[%emt 0:00:27]} 22. c4 {[%emt 0:03:15]} c6 {[%emt 0:00:08]} 23. Ne3 {[%emt 0:00:33]} Qd3 {[%emt 0:01:57]} 24. Bb2 {[%emt 0:04:48]} Qxe2 {[%emt 0:02:16]} 25. Rxe2 {[%emt 0:00:10]} h5 {[%emt 0:02:14]} 26. Bf3 {[%emt 0:01:16]} h4 {[%emt 0:03:51]} 27. f5 {[%emt 0:02:29]} Ng5 {[%emt 0:01:44]} 28. Bh1 {[%emt 0:04:53]} Ne7 {[%emt 0:00:07]} 29. gxh4 {[%emt 0:00:17]} Nh7 {[%emt 0:00:05]} 30. Kf2 {[%emt 0:03:32]} Rd3 {[%emt 0:01:15]} 31. Kg3 {[%emt 0:03:45]} Bxf5 {[%emt 0:00:06]} 32. exf5 {[%emt 0:00:09]} Nxf5+ {[%emt 0:00:05]} 33. Kf2 {[%emt 0:01:07]} Nxh4 {[%emt 0:00:04]} 34. Be4 {[%emt 0:01:00]} Rd7 {[%emt 0:00:18]} 35. Rg1 1-0

[Event "XIV American Continental-ch 2019"]
[Site "Sao Paulo"]
[Date "2019.07.13"]
[Round "11.20"]
[White "Garcia Cardenas, Pablo"]
[Black "Uribe Arteaga, Daniel"]
[Result "1-0"]
[ECO "A56"]
[WhiteElo "2443"]
[BlackElo "2304"]
[Annotator "NA"]
[PlyCount "77"]
[EventDate "2019.07.05"]
[EventType "swiss"]
[EventCountry "BRA"]
[SourceTitle "playchess.com"]
[Source "ChessBase"]
[SourceQuality "1"]
[TimeControl "40/5400+30:1800+30"]

1. d4 {[%emt 0:03:56]} Nf6 {[%emt 0:00:00]} 2. c4 {[%emt 0:00:19]} c5 {[%emt 0:00:00]} 3. d5 {[%emt 0:00:04]} g6 {[%emt 0:00:00]} 4. Nc3 {[%emt 0:00:07]} Bg7 {[%emt 0:00:00]} 5. e4 {[%emt 0:02:52]} d6 {[%emt 0:00:00]} 6. h3 {[%emt 0:00:18]} O-O {[%emt 0:00:04]} 7. Nf3 {[%emt 0:02:07]} e5 {[%emt 0:00:19]} 8. Be3 {[%emt 0:01:34]} Ne8 {[%emt 0:00:44]} 9. g4 {[%emt 0:00:49]} Nd7 {[%emt 0:01:41]} 10. Qc2 {[%emt 0:03:00]} a6 {[%emt 0:03:32]} 11. Bd3 {[%emt 0:01:24]} Kh8 {[%emt 0:06:35]} 12. Nd2 {[%emt 0:09:14]} b5 {[%emt 0:02:15]} 13. cxb5 Nb6 14. a4 {[%emt 0:04:55]} axb5 {[%emt 0:03:33]} 15. Nxb5 {[%emt 0:05:08]} f5 {[%emt 0:00:28]} 16. f3 {[%emt 0:04:27]} fxe4 {[%emt 0:06:32]} 17. Bxe4 {[%emt 0:03:35]} Bh6 {[%emt 0:06:28]} 18. Bxh6 {[%emt 0:03:01]} Qh4+ {[%emt 0:00:05]} 19. Kd1 {[%emt 0:13:47]} Qxh6 {[%emt 0:00:35]} 20. h4 {[%emt 0:01:10]} Ba6 {[%emt 0:11:12]} 21. g5 {[%emt 0:01:19]} Qh5 {[%emt 0:02:56]} 22. Qb3 {[%emt 0:07:16]} Rf4 {[%emt 0:12:04]} 23. Nc7 Nxc7 {[%emt 0:00:30]} 24. Qxb6 {[%emt 0:04:06]} Rxe4 {[%emt 0:05:12]} 25. Qxc7 {[%emt 0:00:09]} Rd4 {[%emt 0:04:00]} 26. Ra3 {[%emt 0:06:44]} Bc4 {[%emt 0:11:32]} 27. Qxd6 {[%emt 0:00:54]} Bxd5 {[%emt 0:00:13]} 28. Qxe5+ {[%emt 0:05:12]} Kg8 {[%emt 0:00:15]} 29. Kc1 {[%emt 0:01:11]} Rd8 {[%emt 0:03:12]} 30. Rh2 {[%emt 0:00:25]} Rxh4 {[%emt 0:02:04]} 31. Rxh4 {[%emt 0:00:48]} Qxh4 {[%emt 0:00:06]} 32. Rd3 {[%emt 0:00:46]} Qxa4 {[%emt 0:08:51]} 33. Rxd5 {[%emt 0:03:03]} Re8 {[%emt 0:00:02]} 34. Qg3 {[%emt 0:00:05]} c4 {[%emt 0:05:10]} 35. Ne4 {[%emt 0:05:17]} Qa1+ {[%emt 0:00:24]} 36. Kc2 {[%emt 0:00:16]} Qa4+ {[%emt 0:00:05]} 37. Kb1 {[%emt 0:04:01]} Re7 {[%emt 0:05:40]} 38. Rd8+ {[%emt 0:00:45]} Kg7 {[%emt 0:00:04]} 39. Qf4 {[%emt 0:00:07]} 1-0

[Event "XIV American Continental-ch 2019"]
[Site "Sao Paulo"]
[Date "2019.07.13"]
[Round "11.21"]
[White "Proudian, Armen"]
[Black "Guimaraes, Wagner Peixoto"]
[Result "1-0"]
[ECO "C65"]
[WhiteElo "2429"]
[BlackElo "2206"]
[Annotator "NA"]
[PlyCount "117"]
[EventDate "2019.07.05"]
[EventType "swiss"]
[EventCountry "BRA"]
[SourceTitle "playchess.com"]
[Source "ChessBase"]
[SourceQuality "1"]
[TimeControl "40/5400+30:1800+30"]

1. e4 {[%emt 0:01:31]} e5 {[%emt 0:09:11]} 2. Nf3 {[%emt 0:01:06]} Nc6 {[%emt 0:01:20]} 3. Bb5 {[%emt 0:00:25]} Bc5 {[%emt 0:00:27]} 4. c3 {[%emt 0:00:45]} Nf6 {[%emt 0:01:22]} 5. O-O {[%emt 0:04:23]} O-O {[%emt 0:00:35]} 6. d4 {[%emt 0:04:02]} Bb6 {[%emt 0:01:18]} 7. Re1 {[%emt 0:01:17]} d6 {[%emt 0:01:06]} 8. h3 {[%emt 0:04:00]} Bd7 {[%emt 0:04:47]} 9. dxe5 {[%emt 0:07:11]} Nxe5 {[%emt 0:04:50]} 10. Bxd7 {[%emt 0:01:36]} Nxf3+ {[%emt 0:00:28]} 11. Qxf3 {[%emt 0:00:08]} Nxd7 {[%emt 0:00:07]} 12. a4 {[%emt 0:05:12]} Ne5 {[%emt 0:05:34]} 13. Qe2 {[%emt 0:05:03]} a6 {[%emt 0:05:20]} 14. a5 {[%emt 0:06:58]} Ba7 {[%emt 0:00:19]} 15. Bf4 {[%emt 0:00:55]} Qh4 {[%emt 0:02:11]} 16. Bxe5 {[%emt 0:01:39]} dxe5 {[%emt 0:01:00]} 17. Nd2 {[%emt 0:00:40]} Rad8 {[%emt 0:11:17]} 18. Rad1 {[%emt 0:05:04]} h6 {[%emt 0:07:10]} 19. Nf3 {[%emt 0:02:19]} Qf4 {[%emt 0:00:48]} 20. Rd3 {[%emt 0:06:43]} Rxd3 {[%emt 0:07:54]} 21. Qxd3 {[%emt 0:00:09]} Qg3 {[%emt 0:01:31]} 22. Re2 {[%emt 0:01:10]} Qf4 {[%emt 0:15:58]} 23. Rd2 {[%emt 0:13:01]} f5 {[%emt 0:04:20]} 24. Qd5+ {[%emt 0:06:42]} Kh7 {[%emt 0:01:55]} 25. Re2 {[%emt 0:10:57]} Qc1+ {[%emt 0:02:07]} 26. Ne1 {[%emt 0:00:33]} fxe4 {[%emt 0:01:11]} 27. Qxe4+ {[%emt 0:00:15]} Kh8 {[%emt 0:00:06]} 28. Qxe5 {[%emt 0:01:25]} Qd1 {[%emt 0:02:59]} 29. Kf1 {[%emt 0:01:22]} Qd7 {[%emt 0:03:27]} 30. b4 {[%emt 0:01:24]} Qf7 {[%emt 0:01:51]} 31. Nf3 {[%emt 0:00:40]} Qc4 {[%emt 0:00:44]} 32. Kg1 {[%emt 0:00:35]} Qd3 {[%emt 0:01:10]} 33. Rd2 {[%emt 0:01:55]} Qb1+ {[%emt 0:00:21]} 34. Qe1 {[%emt 0:00:21]} Qb3 {[%emt 0:00:26]} 35. Rd7 {[%emt 0:00:46]} Qc4 {[%emt 0:01:32]} 36. Qe5 {[%emt 0:00:26]} Rg8 {[%emt 0:00:39]} 37. Rxc7 {[%emt 0:01:35]} Qa2 {[%emt 0:00:31]} 38. Qe1 {[%emt 0:00:38]} Rd8 {[%emt 0:00:35]} 39. Re7 {[%emt 0:00:47]} Qc2 {[%emt 0:00:29]} 40. Re8+ {[%emt 0:00:26]} Rxe8 {[%emt 0:00:01]} 41. Qxe8+ {[%emt 0:30:09]} Kh7 {[%emt 0:30:04]} 42. Qe1 {[%emt 0:00:26]} Qd3 {[%emt 0:00:00]} 43. Qd2 {[%emt 0:00:00]} Qb1+ {[%emt 0:00:00]} 44. Ne1 {[%emt 0:00:00]} Qa1 {[%emt 0:00:00]} 45. g3 {[%emt 0:00:00]} Bb8 {[%emt 0:00:00]} 46. Kg2 {[%emt 0:00:00]} Be5 {[%emt 0:00:00]} 47. c4 {[%emt 0:00:00]} Bc3 {[%emt 0:00:00]} 48. Qd3+ {[%emt 0:00:00]} Kh8 {[%emt 0:00:00]} 49. Qd8+ {[%emt 0:00:00]} Kh7 {[%emt 0:00:00]} 50. Nd3 {[%emt 0:00:00]} Qa4 {[%emt 0:00:00]} 51. Qd6 {[%emt 0:00:00]} Qd1 {[%emt 0:00:00]} 52. Qd5 {[%emt 0:00:00]} Qb1 {[%emt 0:00:00]} 53. c5 {[%emt 0:00:00]} Bxb4 {[%emt 0:00:00]} 54. Qe4+ {[%emt 0:00:00]} Kh8 {[%emt 0:00:00]} 55. Qxb4 {[%emt 0:00:00]} Qxd3 {[%emt 0:00:00]} 56. Qxb7 {[%emt 0:00:00]} Qc4 {[%emt 0:00:00]} 57. c6 {[%emt 0:00:00]} Qd5+ {[%emt 0:00:00]} 58. Kh2 {[%emt 0:00:00]} h5 {[%emt 0:00:00]} 59. h4 {[%emt 0:00:00]} 1-0

[Event "XIV American Continental-ch 2019"]
[Site "Sao Paulo"]
[Date "2019.07.13"]
[Round "11.22"]
[White "Gauche, Charles"]
[Black "Languidey, Simon Alejandro"]
[Result "0-1"]
[ECO "C04"]
[WhiteElo "2200"]
[BlackElo "2427"]
[Annotator "NA"]
[PlyCount "142"]
[EventDate "2019.07.05"]
[EventType "swiss"]
[EventCountry "BRA"]
[SourceTitle "playchess.com"]
[Source "ChessBase"]
[SourceQuality "1"]
[TimeControl "40/5400+30:1800+30"]

1. e4 {[%emt 0:03:24]} e6 {[%emt 0:12:06]} 2. d4 {[%emt 0:00:09]} d5 {[%emt 0:00:06]} 3. Nd2 {[%emt 0:00:56]} Nc6 {[%emt 0:00:53]} 4. Ngf3 {[%emt 0:01:32]} Nf6 {[%emt 0:00:19]} 5. e5 {[%emt 0:00:05]} Nd7 {[%emt 0:00:09]} 6. c3 {[%emt 0:00:10]} f6 7. Bb5 {[%emt 0:00:33]} fxe5 {[%emt 0:18:32]} 8. Nxe5 {[%emt 0:01:24]} Ncxe5 {[%emt 0:02:38]} 9. dxe5 {[%emt 0:00:26]} c6 {[%emt 0:00:52]} 10. Bd3 {[%emt 0:00:08]} Nxe5 {[%emt 0:09:55]} 11. Qh5+ {[%emt 0:00:22]} Nf7 {[%emt 0:00:08]} 12. Bxh7 {[%emt 0:00:17]} e5 {[%emt 0:19:12]} 13. Nf3 {[%emt 0:02:16]} Bd6 {[%emt 0:00:10]} 14. Nh4 {[%emt 0:02:33]} Bg4 {[%emt 0:03:30]} 15. Qxg4 {[%emt 0:01:03]} Rxh7 {[%emt 0:00:38]} 16. Nf5 {[%emt 0:00:35]} Qf6 {[%emt 0:00:05]} 17. Be3 {[%emt 0:01:37]} g6 {[%emt 0:01:51]} 18. Nxd6+ {[%emt 0:00:29]} Nxd6 {[%emt 0:00:10]} 19. Bg5 {[%emt 0:01:03]} Qf5 {[%emt 0:00:29]} 20. Qxf5 {[%emt 0:00:11]} gxf5 {[%emt 0:00:07]} 21. Bf6 {[%emt 0:01:19]} e4 {[%emt 0:00:33]} 22. O-O-O {[%emt 0:02:53]} Kf7 {[%emt 0:00:07]} 23. Bg5 {[%emt 0:01:00]} Rg8 {[%emt 0:01:01]} 24. h4 {[%emt 0:00:17]} Ke6 {[%emt 0:00:28]} 25. g3 {[%emt 0:06:15]} Nc4 {[%emt 0:02:10]} 26. Kc2 {[%emt 0:04:10]} Ne5 {[%emt 0:01:37]} 27. a4 {[%emt 0:04:02]} c5 {[%emt 0:02:40]} 28. Bf4 {[%emt 0:06:15]} Rh5 {[%emt 0:06:46]} 29. a5 {[%emt 0:02:43]} Nf3 {[%emt 0:00:18]} 30. Kb3 {[%emt 0:01:39]} Rd8 {[%emt 0:01:19]} 31. Ka4 {[%emt 0:00:54]} a6 {[%emt 0:04:35]} 32. b4 {[%emt 0:00:26]} cxb4 {[%emt 0:01:46]} 33. Kxb4 {[%emt 0:00:43]} Rc8 {[%emt 0:00:33]} 34. Rb1 {[%emt 0:00:27]} Rc4+ {[%emt 0:01:24]} 35. Kb3 {[%emt 0:00:11]} Rc5 {[%emt 0:01:01]} 36. Ka4 {[%emt 0:00:40]} Rc4+ {[%emt 0:01:27]} 37. Rb4 {[%emt 0:00:16]} Rxb4+ {[%emt 0:00:29]} 38. Kxb4 {[%emt 0:00:06]} Ne5 {[%emt 0:04:24]} 39. Be3 {[%emt 0:05:00]} Nd7 {[%emt 0:01:46]} 40. c4 {[%emt 0:00:49]} Ne5 {[%emt 0:03:10]} 41. cxd5+ {[%emt 0:31:54]} Kxd5 {[%emt 0:30:10]} 42. Rd1+ {[%emt 0:01:36]} Nd3+ {[%emt 0:00:27]} 43. Kc3 {[%emt 0:00:41]} Kc6 {[%emt 0:00:00]} 44. Kd4 {[%emt 0:00:00]} Kb5 {[%emt 0:00:00]} 45. Rb1+ {[%emt 0:00:00]} Kxa5 {[%emt 0:00:00]} 46. Rxb7 {[%emt 0:00:00]} Ka4 {[%emt 0:00:00]} 47. f3 {[%emt 0:00:00]} Ne1 {[%emt 0:00:00]} 48. fxe4 {[%emt 0:00:00]} Nf3+ {[%emt 0:00:00]} 49. Kc3 {[%emt 0:00:00]} a5 {[%emt 0:00:00]} 50. exf5 {[%emt 0:00:00]} Rxf5 {[%emt 0:00:00]} 51. Kd3 {[%emt 0:00:00]} Rh5 {[%emt 0:00:00]} 52. Bf2 {[%emt 0:00:00]} Ne5+ {[%emt 0:00:00]} 53. Ke4 {[%emt 0:00:00]} Nc4 {[%emt 0:00:00]} 54. Rb8 {[%emt 0:00:00]} Nd6+ {[%emt 0:00:00]} 55. Kf3 {[%emt 0:00:00]} Rf5+ {[%emt 0:00:00]} 56. Kg2 {[%emt 0:00:00]} Rb5 {[%emt 0:00:00]} 57. Rf8 {[%emt 0:00:40]} Kb3 {[%emt 0:00:00]} 58. g4 {[%emt 0:04:34]} a4 {[%emt 0:00:00]} 59. h5 {[%emt 0:01:50]} a3 {[%emt 0:00:00]} 60. h6 {[%emt 0:00:46]} a2 {[%emt 0:00:00]} 61. Ra8 {[%emt 0:01:26]} Nf7 {[%emt 0:00:00]} 62. Be3 {[%emt 0:04:49]} Rd5 {[%emt 0:00:38]} 63. h7 {[%emt 0:02:26]} Rd8 {[%emt 0:01:42]} 64. Rxd8 {[%emt 0:00:22]} a1=Q {[%emt 0:00:47]} 65. Rf8 {[%emt 0:01:04]} Nh8 {[%emt 0:01:48]} 66. Rg8 {[%emt 0:02:17]} Qe5 {[%emt 0:02:57]} 67. Kf3 {[%emt 0:05:35]} Qd5+ {[%emt 0:03:13]} 68. Kg3 {[%emt 0:07:33]} Qd6+ {[%emt 0:00:21]} 69. Kg2 {[%emt 0:00:35]} Qc6+ {[%emt 0:00:41]} 70. Kg1 {[%emt 0:01:50]} Qe4 {[%emt 0:00:46]} 71. Rxh8 {[%emt 0:00:57]} Qxe3+ {[%emt 0:00:11]} 0-1

[Event "XIV American Continental-ch 2019"]
[Site "Sao Paulo"]
[Date "2019.07.13"]
[Round "11.23"]
[White "Almiron, Antonio"]
[Black "Labussiere, Victor"]
[Result "1/2-1/2"]
[ECO "D00"]
[WhiteElo "2402"]
[BlackElo "2194"]
[Annotator "NA"]
[PlyCount "39"]
[EventDate "2019.07.05"]
[EventType "swiss"]
[EventCountry "BRA"]
[SourceTitle "playchess.com"]
[Source "ChessBase"]
[SourceQuality "1"]
[TimeControl "40/5400+30:1800+30"]

1. d4 {[%emt 0:00:00]} d5 {[%emt 0:03:20]} 2. Bf4 {[%emt 0:00:00]} Nf6 {[%emt 0:00:59]} 3. e3 {[%emt 0:00:00]} c5 {[%emt 0:01:30]} 4. c3 {[%emt 0:00:00]} Nc6 {[%emt 0:00:51]} 5. Nd2 {[%emt 0:00:00]} Bf5 {[%emt 0:02:30]} 6. Qb3 {[%emt 0:00:30]} Qc8 {[%emt 0:06:28]} 7. Ngf3 {[%emt 0:06:47]} c4 {[%emt 0:07:23]} 8. Qd1 {[%emt 0:00:08]} h6 {[%emt 0:05:39]} 9. h3 {[%emt 0:00:11]} e6 {[%emt 0:01:25]} 10. Be2 {[%emt 0:00:44]} Be7 {[%emt 0:00:45]} 11. O-O {[%emt 0:01:12]} O-O {[%emt 0:01:15]} 12. Ne5 {[%emt 0:09:46]} b5 {[%emt 0:08:23]} 13. a3 {[%emt 0:00:03]} Nd7 {[%emt 0:04:25]} 14. Nxd7 {[%emt 0:10:58]} Qxd7 {[%emt 0:01:42]} 15. Bf3 {[%emt 0:00:02]} Bd3 {[%emt 0:11:16]} 16. Re1 {[%emt 0:00:08]} f5 17. Be2 {[%emt 0:00:08]} Bxe2 {[%emt 0:01:54]} 18. Qxe2 {[%emt 0:00:02]} a5 {[%emt 0:02:59]} 19. Reb1 {[%emt 0:07:57]} b4 {[%emt 0:03:51]} 20. Qd1 {[%emt 0:03:09]} 1/2-1/2

[Event "XIV American Continental-ch 2019"]
[Site "Sao Paulo"]
[Date "2019.07.13"]
[Round "11.24"]
[White "Sarkar, Justin"]
[Black "Alboredo, Julia"]
[Result "1/2-1/2"]
[ECO "A22"]
[WhiteElo "2389"]
[BlackElo "2175"]
[Annotator "NA"]
[PlyCount "23"]
[EventDate "2019.07.05"]
[EventType "swiss"]
[EventCountry "BRA"]
[SourceTitle "playchess.com"]
[Source "ChessBase"]
[SourceQuality "1"]
[TimeControl "40/5400+30:1800+30"]

1. c4 {[%emt 0:21:35]} e5 {[%emt 0:00:00]} 2. Nc3 {[%emt 0:01:54]} Nf6 {[%emt 0:00:17]} 3. d4 {[%emt 0:01:26]} exd4 {[%emt 0:02:30]} 4. Qxd4 {[%emt 0:00:05]} Nc6 {[%emt 0:01:06]} 5. Qd1 {[%emt 0:00:13]} Bb4 {[%emt 0:06:36]} 6. Bd2 {[%emt 0:00:09]} d5 {[%emt 0:13:42]} 7. cxd5 {[%emt 0:03:05]} Nxd5 {[%emt 0:01:44]} 8. Nxd5 {[%emt 0:00:26]} Qxd5 {[%emt 0:00:16]} 9. Bxb4 {[%emt 0:00:38]} Qxd1+ {[%emt 0:01:50]} 10. Rxd1 {[%emt 0:00:09]} Nxb4 {[%emt 0:00:08]} 11. a3 {[%emt 0:00:10]} Nc6 {[%emt 0:00:34]} 12. Nf3 {[%emt 0:00:12]} 1/2-1/2